{"text_format":"3","workbook":"xlsx","n_sheets":15,"sheets":["История ","География, экономика","Физика","Химия, биология, экология","Созидательный труд ","Загадки английского","Русский язык ","Математика","Татарский ","Юный Окружающий мир","Юный История","Юный Физика, математика","Юный русский язык  ","Юный Татарский ","Учителя"],"not_rendered":{"defined_names":2},"read":"whole","date_system":"1900"}

{"sheet":"История ","index":0,"n_rows":51,"n_cols":10,"rows_kept":51}
["№","Наименование\nОУ\n","Направление конкурсной работы","Название работы","Предмет ","ФИО автора работы","Класс ","Руководитель ","работа","оплата"]
[1,"Лицей №177 г.Казань","История и краеведение, жизнь и научная деятельность К. А. Валиева","\"У домов как у людей своя судьба\"","История Татарстана","Калентьев Леонид Евгеньевич",7,"Сергеева С.В.,   Проворова О.А., "]
[2,"МБОУ школа № 181 г.Казани","краеведение ","Неизвестный  В.В.Лукницкий","история","Гараев Амирхан Радикович",7,"Загидуллина Л.А."]
[3,"МБОУ школа № 181 г.Казани","краеведение ","Арское  Педагогическое Училище в годы ВОВ","история","Григорьева Дарья Михайловна","7в","Загидуллина"]
[4,"МБОУ \"СОШ №1 г.Нурлат\"","История, краеведение","Фронтовые письма братьев Юмшаноавых","история","Гилязов Булат  Ильсурович, Галимова Эндже",10,"Гилязова Фания Фанилевна"]
[5,"МБОУ \"Лицей №2 им.ак.К.А.Валиева\nг. Мамадыш\" РТ","«История, краеведение»","Как социальные сети влияют на социализацию подростка","обществознание","Гиззатуллин Алмаз ",9,"Шишкина Юлия Александровна \n"]
[6,"МБОУ \"СОШ №4 \nг. Мамадыш\" РТ","«История, краеведение»","Дети - жертвы террора","обществознание","Зайдуллина Лиана, Богоутдинова Рушания",10.11,"Шишкина Татьяна Александровна Саматова Альфия Зуннуровна  \n"]
[7,"МБОУ \"Средняя общеобразовательная школа №27  Нижнекамского муниципального район","История и краеведение","Непобедима страна, в которой есть такие женщины","Русский язык и литература","Мингазова Лейла Расимовна","6а","Филиппова Наталья Николаевна, учитель русского языка и литературы"]
[8,"МБОУ Средняя общеобразовательная школа №88 Приволжского района города Казани"," \"История ,краеведение\"","\"Молодежные субкультуры и их влияние на развитие личности ","История, краеведение","Бобрихина  Анастасия","9а","Марданова Эльвира Шамилевна,учитель истории"]
[9,"МБОУ \"СОШ №6\" ЕМР РТ","История и краеведение, жизнь и научная деятельность К.А. Валиева","\"От купеческих особняков-до учебных корпусов: история образовательных учреждений на улицах Больша Покровская и Набережная\"","Краеведение","Афанасьева Арина Евгеньевна","11 А","Гурьева Ирина Викторовна - учитель истории и обществознания высшей квалификационной категории"]
[10,"МБОУ  «Шадчинская СОШ»","«История, краеведение»","Чал тарихлы мәктәбемә - 100 ел\n\t\t\t\t\t\t\r\n","История","Евдокимова Виктория Анатольевна",8,"Ахатова Эльмира Амировна учитель истории, педагог дополнительного образования"]
[11,"МБОУ «Школа № 167  с углубленным \nизучением отдельных предметов»","История, краеведение","«Сакральная архитектура храмов. \nКоэффициент комфортности в жизнедеятельности человека»","математика","Шаймарданова Камила Азатовна, \nСадриева Лейсан Искандеровна\n",10,"Николаев \nЭ. Н,\nФаюршина И.Г.\nучителя математики \nи информатики"]
[12,"МБОУ \"Мамаширская средняя школа\" Кукморского муниципального района РТ","История и краеведение","Солдаты тыла","краеведение","Сабирзянова Дина Саматовна   Газизова Залина Раисовна",8.7,"Насибуллина Танзиля Дамировна, учитель истории"]
[13,"МБОУ \"Школа 68\", НТОУ \"Озарение\"","краеведение","Пятивекой путь одной ветви из рода Халитовых","история Татарстана","Абдулхаков Булат Радикович",10,"Хамидуллина Ирина Викторовна, учитель, Чумакова Роза Ибрагимовна, краевед"]
[14,"МАОУ «Лицей № 78 имени А.С.Пушкина» г. Набережные Челны","История","Эволюция танков во время Великой Отечественной войны","История","Хайруллин Амир Эрикович","5 В","Мухтярова Эльмира Исхаковна, учитель истории и обществознания, кандидат философских наук"]
[15,"МАОУ «Лицей №121», г.Казани","Краеведение","Династия Апанаевых в истории народов России","Краеведение","Большаков Даниил",7,"Валиуллина Р.Х. Шигапова Л.Г."]
[16,"Лицей №2 Мамадыш",null,"Антигитлеровская коалиция  в 1941-1945гг",null,"Галиуллина Эльза",null,"Шевяхова Л В"]
{"$rows_empty":33}
[{"$f":"COUNT(A2:A50)","v":16}]

{"sheet":"География, экономика","index":1,"n_rows":52,"n_cols":10,"rows_kept":52}
["№","Наименование\nОУ\n","Направление конкурсной работы","Название работы","Предмет ","ФИО автора работы","Класс ","Руководитель ","работа","оплата"]
[1,"МБОУ Баланнинская основная общеобразовательная школа Муслюмовского муниципального района Республики Татарстан","Экономика, география","Рассчитываем, экономим","Математика","Хасанов Айнур Инсафович",7,"Ахметова Сурия Фарисовна"]
[2,"МБОУ \"Нижнеошминская СОШ\" Мамадышского района РТ","Исследовательская работа","Малые реки Мамадышского района РТ - река Ошма","география","Миннахметов Ильгиз Ринатович",8,"Гарифуллин Халит Гайфуллович"]
[3,"Частное общеобразовательное учреждение Международная Школа \"Развитие\"","География, экономика","Альтернативные заправочные станции для электромобилей","Физика","Кузнецов Александр Александрович",10,"Соловьев Сергей Александрович, учитель физики и математики"]
[4,"МБОУ \"Красногорская СОШ\"","Научно-исследовательская работа","Маленькое торнадо в ванней и закое Бэра -Бабинэ","География","Гасимова Аделя",5,"Саттарова Раиса Ильсуровна"]
[5,"Зюринская СОШ",null,"Мәктәпнен демографик портреты",null,"Яковлев Вадим"]
{"$rows_empty":45}
[{"$f":"COUNT(A2:A51)","v":5}]

{"sheet":"Физика","index":2,"n_rows":94,"n_cols":10,"rows_kept":94}
["№","Наименование\nОУ\n","Направление конкурсной работы","Название работы","Предмет ","ФИО автора работы","Класс ","Руководитель ","работа","оплата"]
[1,"МБОУ \"Сармановская  средняя общеобразовательная школа\"","Секция №3","Почему раковина шумит?","физика","Валитова Аделя Наиловна","5 а","Валитова Лилия Исламовна"]
[2,"МБОУ Лицей 177 г.Казани","Физика","Двигатель Стирлинга","Физика","Зеленов Роман Евгеньевич","9 \"А\"","Сидоров Александр Вячеславович, учитель химии, к.б.н."]
[3,"Частное общеобразовательное учреждение Международная Школа \"Развитие\"","Физика","Влияние различных звуковых частот на организм человека","Физика","Бурыкин Вадим Павлович",8,"Соловьев Сергей Александрович, учитель физики и математики"]
[4,"МБОУ \"Лицей 177\" и ЦВР ЭКОиТТ Ново - Савиновский район, г. Казань","Физика","Источник электроэнергии на основе радиоактивного распада трития","Физика","Сильвестров Даниил Степанивич",9,"Имамов Ильдар Фаизович,\n  Сидоров Александр Вячеславович,\n"]
[5,"Лицей №2 г Мамадыш","Физика","Умный дом своими руками","Физика","Гимранов Ильфат ",10,"Шакирова Л Ф"]
[6,"МБОУ «Лицей №2 им.ак. К.А. Валиева г. Мамадыш».","Физика","Проект шиномонтажной мастерской","Физика","Шайхиев Айрат\nХадиуллин Нур",11,"Хайруллин И.А."]
[7," «Средняя общеобразовательная  школа №1 города Азнакаево Республики Татарстан»         ","естественно-математическое","Влияние атмосферного давления на посещаемость и  успеваемость учащихся моего класса ","физика","Марданшина Миляуша Марселевна",10,"Хафизова Зиля Марсиловна, учитель физики первой квалификационной категории"]
{"$rows_empty":85}
[{"$f":"COUNT(A2:A93)","v":7}]

{"sheet":"Химия, биология, экология","index":3,"n_rows":18,"n_cols":10,"rows_kept":18}
["№","Наименование\nОУ\n","Направление конкурсной работы","Название работы","Предмет ","ФИО автора работы","Класс ","Руководитель ","работа","оплата"]
[1,"«Гимназия п.г.т. Богатые Сабы Сабинского муниципального района Республики Татарстан» ","Химия, Биология,Экология","Оценка экологического состояния окружающей среды\nп. Богатые Сабы по асимметрии листьев березы повислой\n\n","Экология","Муратова Фарида Робертовна",8,"Рахимова Миляуша Мансуровна"]
[2,"МБОУ «Заинская средняя общеобразовательная школа № 6» ","Экология","Бездомные животные, как одна из экологических проблем нашего города","Биология","Моисеева Виктория Артёмовна",5,"Грушева Галина Владимировна, "]
[3,"МБОУ «Заинская средняя общеобразовательная школа № 6» ","Здоровье","Глаз- удивительный дар природа, берегите зрение смолоду!","Обществознание","Исмагилова Диляра Ренатовна",5,"Грушева Галина Владимировна, "]
[4,"МБОУ \"СОШ №112\"  Казань","Химия, биология, экология","\"Проблемы большого города, или мы в ответе за тех, кого приручили\"","Биология","Силахина Александра Валерьевна Галиева Алина Галимовна","8Б","Скворцова Светлана Сергеевна, учитель биологии"]
[5,"МБОУ \"Байлянгарская средняя школа им. Р.И.Зарипова\" Кукморского района","Экология","Определение тяжёлых металлов в системе почва-растение","Экология","Абдуллина Дина Василовна",11,"Гарифуллина Фарида Шараповна"]
[6,"Лицей №177 г.Казань","Химия, биология, экология","Стимуляторы роста при проращивании Касатика сибирского","Биология ","Дубков Радгамир Владимирович",7,"Сергеева С.В., "]
[7,"Лицей №177 г.Казань","Химия, биология, экология","Оценка состояния здоровья учащихся                                                         лицея №177","Биология    (Психология)","Сысоева Алевтина Андреевна",7,"Сергеева С.В., з"]
[8," «Лицей №2 им. ак. К.А. Валиева г. Мамадыш» "," Химия, биология, экология","Ихтиофауна  реки Вятки на территории города Мамадыш","биология","Трукаева Аделина","8А","Соловьева Екатерина Алексеевна, учитель"]
[9,"Частное общеобразовательное учреждение Международная Школа \"Развитие\"","Экология","Экологическое сознание и экологическая культура. Проблемы и перспективы","Биология","Шаяхметов Игорь Влдаимирович",11,"Черницына Маргарита Михайловна, "]
[10,"МОБУ \"Средняя общеобразовательная школа № 4\" Сургут","\"Окружающий мир, здоровье, экология\"","\"Экологические мультфильмы из ТБО как средство формирования экологически ориентированного поведения у школьников\"","экология","Борисовская Анастасия Александровна",8,"Мамонова Татьяна Петровена, учитель биологии и экологии"]
[11," «Заинская средняя общеобразовательная школа № 6» ","Химия, биология, экология","Влияние синтетических моющих средств на водные растения","экология","Авемчук Милена Михайловна",5,"Арифулина Татьяна Сергеевна  "]
[12,"МБОУ \"Гимназия №26\"","Химия, биология, экология","Изучение влияния наночастиц магнетита на всхожесть и прорастание некоторых культурных растений","Экология","Ахметзянова Алия Азатовна","10А","Андрианова Альбина Абдулхатовна"]
[13,"МБОУ Ромодановская СОШ Алексеевского МР РТ","Химия,Биология,Экология.","Судьба родного края","Экология","Егорова Софья Андреевна",8,"Локтева Анна Павловна. учитель математики"]
[14,"МБОУ \"Бехтеревская СОШ\" Елабужского муниципального района Республики Татарстан","Биология, экология","Исследование видового разнообразия грибов-макромицетов окрестностей села Бехтерева","биология","Потанин Алексей Олегович",10,"Вилисова Галина Павловна, Гольцева Альмира Анасовна, высшей квалификационной категории"]
[15,"МБОУ \"Красногорская СОШ\"","Научно-исследовательская работа","Использование лишайников для определения уровня загрязнения воздушной среды","Биология","Захарова Ангелина          Исекеева Милена",6,"Нурмиева Галина Александровна"]
[16,"МБОУ \"Лицей №2 им ак К.Валиева г.Мамадыш\"","Биология, экология","Правильаная осанка - залог здоровья современного школьника","биология","Елина Алина Николаевна",10,"Ханафеева Роза Махмутовна"]
[17,"МБОУ \"СОШ №112\" ","Химия, биология, экология","\"Применение полеэлектролитных комплексов хитозана с пектином в процессах капсулирования\"","Химия","Силахина Александра Валерьевна","8Б","1. Миргалеева Наталья Владимировна Шилова Светлана Владимировна, "]

{"sheet":"Созидательный труд ","index":4,"n_rows":96,"n_cols":10,"rows_kept":96}
["№","Наименование\nОУ\n","Направление конкурсной работы","Название работы","Предмет ","ФИО автора работы","Класс ","Руководитель ","работа","оплата"]
[1,"МБОУ \"Многопрофильный лицей им. А.М. Булатова п.г.т. Кукмор\"","Созидательный труд школьников","Создание коллекции одежды для стилизованной фотосессии","Технология ","Шакирова Камиля Илдаровна",8,"Галиева Наталья Александровна, учитель технологии высшей категории"]
[2,"МБОУ \"Башкирская гимназия №122\" ГО город Уфа Республика Башкортостан","Созидательный труд школьников","Роботы в помощь людям с ограниченными  возможностями","Наука и техника (робототехника)","Якупов Радмир Эмилевич","5а","Якупова Эльмира Фидратовна учитель МБОУ \"Башкирская гимназия №122\" ГО г.Уфа Республика Башкортостан"]
[3,"МАОУ \"Лицей № 78 им. А.С. Пушкина\" \nг. Набережные Челны","Созидательный труд школьников","Роль высшего образования как института социальной мобильности\n","Обществознание","Шакуров Раис",7,"Рустами М.В."]
[4,"МБОУ \"СОШ №20\" г.Нижнекамска",".Созидательный труд школьников",".Каждый человек должен знать свою родословную",".Созидетельный труд школьников","Пахомова Полина Юрьевна","8 класс","Гарифуллина Лейсан Анасовна"]
[5,"Муниципальное бюджетное общеобразовательное учеждение \"Средняя школа д.Починок Сутер\"","созидательный труд школьника","Воздушный костюм","технология","Закирова Руслана Исламовна",7,"Демьянова Нина Михайловна"]
[6,"МБОУ «ШадчинскаяСОШ»","Созидательный труд школьников","Мак из фомирана","технология","Салимзянова Гульшат Альбертовна",9,"Хайдарова Гульнара Раифовна учитель технологии  "]
[7,"МБОУ «Красногорская СОШ»",null,"Творческий проект «Одинокий парус»",null,"Минькина А.",null,"Медведева "]
{"$rows_empty":87}
[{"$f":"COUNT(A2:A95)","v":7}]

{"sheet":"Загадки английского","index":5,"n_rows":26,"n_cols":4,"rows_kept":26,"merged":[[1,0,2,0],[1,1,2,1],[1,2,2,2],[1,3,2,3],[3,0,4,0],[3,1,4,1],[3,2,4,2],[3,3,4,3],[8,0,10,0],[8,1,10,1],[8,3,10,3],[11,0,12,0],[11,1,12,1],[11,2,12,2],[11,3,12,3],[13,0,14,0],[13,1,14,1],[13,3,14,3],[15,0,16,0],[15,1,16,1],[15,2,16,2],[15,3,16,3],[17,0,18,0],[17,1,18,1],[17,3,18,3]]}
["№","ФИО участника","Название работы","Название школы"]
[1,"Александр Валиев","Культурный диалог в контексте творчества Пабло Неруды и особая роль переводчика","ГБОУ \"Школа 1558 им.Росалии де Кастро\" г.Москвы"]
[]
[2,"Гимадиев Самат, Сафиуллина Зарина,","Использование веб-сервиса  LEARNINGAPPS.ORG  для создания мультимедийных интерактивных упражнений как одна из форм инновационной деятельности на уроках английского языка","Муниципальное бюджетное образовательное учреждение «Подгорнобайлярская ООШ»"]
[]
[3,"Демиева Миляуша, Мамадалиева Динара","Booktrailer: книга в кадре","МБОУ «Лицей №2 им.ак.К.А.Валиева г. Мамадыш»"]
[4,"Елизавета Иванова","Хип-хоп культура и её влияние на сленг молодёжи","МБОУ \"Лицей №9 имени А. С. Пушкина ЗМР РТ\""]
[5,"Исмагилова Зухра","Символы соединенного королевства Великобритании и Северной Ирландии","Верхнеошминская СОШ Мамадышского р-на РТ"]
[6,"Латипова Риана","Сходства и различия названий улиц и","Муниципальное бюджетное общеобразовательное учреждение \"Большенуркеевская средняя общеобразовательная школа\""]
[null,null,"нумерации домов Лондона"]
[null,null,"и моего села"]
[7,"Артемий Мясоедов","Что делает лимерик популярным","МАОУ «Средняя общеобразовательная школа №18 с углубленным изучением английского языка» Вахитовского района г.Казани"]
[]
[11,"Алина Суфиярова","«Почему англичане дарят подарки на Рождество,","МАОУ \"Гимназия №76\" г. Набережные Челны"]
[null,null,"а мы на Новый год»"]
[12,"Вагиз Файрушин","Russian Borrowings in English","МБОУ \"Верхнеуслонская гимназия\""]
[]
[13,"Хабибуллин Хабиб","Особенности национального характера татар и англичан:","МБОУ \"Гимназия №2\" НМР РТ"]
[null,null,"положительные и отрицательные черты. Их отражение в пословицах и поговорках"]
[14,"Лукманова Лиана","Фразовые глаголы в современных английских песнях","МБОУ «Лицей №2 им.ак. К.А.Валиева г. Мамадыш»"]
[15,"Хабибуллина Хаят","Яркие национальные особенности британского и татарского костюмов","МБОУ \"Гимназия №2\" НМР РТ"]
[16,"Хайруллина Лия","Территориальные деления на административные единицы в англоязычных странах в сравнении с реалиями в России","МБОУ \"СОШ  №1  г. Мамадыш\""]
[18,"Хасанов Карим","Английские и татарские волшебные сказки. О чём мечтает народ в сказках?","МБОУ \"Гимназия №2\" НМР РТ"]
[19,"Хисматуллина Лейла","Английский и татарский календарь. Что могут рассказать названия месяцев и дней недели?","МБОУ \"Гимназия №2\" НМР РТ"]
[20,"Чугунова Анастасия","Английский и татарский сленги в русской речи","МБОУ \"Лицей №9 имени А. С. Пушкина ЗМР РТ\""]
[22,"Шарифуллина Алина","Образ кошки в русских и английских пословицах и сказках","МБОУ «Гимназия №1 им.  М.Т. Айтматова пгт Кукмор»"]

{"sheet":"Русский язык ","index":6,"n_rows":84,"n_cols":10,"rows_kept":84}
["№","Наименование\nОУ\n","Направление конкурсной работы","Название работы","Предмет ","ФИО автора работы","Класс ","Руководитель ","Работа","оплата"]
[1,"МБОУ \"Гимназия №2\" им. Баки Урманче НМР РТ","Русский язык и литература","Заимствования из французского языка и их роль в современном русском языке","русский язык и литература","Хафизова Алия Ниязовна","10 А","Хафизова Гульназ Райхатовна"]
[2,"МБОУ \"Омарская СОШ\"","Русский язык и литература","Имена собственные в названиях  предприятий","Русский язык","Чирухина София Александровна",10,"Cаматова Лейсан Ханифовна"]
[3,"МБОУ \"СОШ №112\" ","Русский язык и литература","\"Няша - значение слова в подростковом сленге и научной литературе\""," Русский язык","Силахина Александра Валерьевна","8Б","Ганиева Лариса Викторовна, учитель русского языка и литературы"]
[4,"МБОУ \"Среднекирменская СОШ\"","Искусство,технология,литература,русский язык\"","Образ Дома в произведениях художественной работы","Литература"," Закиров Руслан Ленарович","10 класс","Марданова А.Ш"]
[5,"МБОУ «ЗСОШ №6»\n Заинского муниципального района  РТ\n","\"Искусство, технология, русский язык и литература\"","Диалектизмы в лексике жителей Заинского района Республики Татарстан.","русский язык ","Фаттахова Элина Эдуардовна","5 \"г\" ","Руководитель Г.Ш. Садыйкова  учитель русского языка и литературы МБОУ «ЗСОШ №6» "]
[6,"МБОУ \"Верхнеякинская  основная  общеобразовательная школа\" Мамадышского муниципального района РТ\"","Русский язык и  литература","Этико-эстетическая детализация портрета в романе Б.Л.Пастернака  \"Доктор Живаго\"",null,"Бурганов Алмаз Ильнурович",9," Ахметшина Гульназ Хасбатовна учитель русского языка и литературы"]
[7,"Частное общеобразовательное учреждение Международная Школа \"Развитие\"","Литература","Как увеличить интерес подростков к чтению в школе?","Литература","Кушнарева Элеонора Викторовна",10,"Черницына Маргарита Михайловна"]
[8,"МБОУ \"Среднекирменская СОШ\" ","русский язык и литература","\"Самая нерусская буква русского алфавита, или почему Пушкин редко употреблял букву Ф\"","русский язык и литература","Марданова Нурсина Рифатовна",5,"Искандарова Гульназ Вакиповна"]
[9,"МОБУ \"Средняя общеобразовательная школа № 4\" Сургут","\"Искусство, технология, русский язык и литература\"","\"Художественные особенности сказок народов ханты и манси\"","литература","Каримова Эльвира Вильдановна",7,"Борисовская Марина Валерьевна, учитель русского языка и литературы, кпн"]
[10,"МБОУ № 20 г. Альметьевск","Русский язык и литература","Язык мультфильмов. Плюсы и минусы.","Русский язык","Лебедева Полина Александровна Гаврилова Камилла Даниловна",6,"Бортникова Надежда Анатольевна,"]
[11,"МБОУ \"Шкорла 68\", НТОУ \"Озарение\"","русский язык","Понятие страха в языковом сознании подростка","русский язык","Левина Алина Валерьевна",10,"Хамидуллина Ирина Викторовна, учитель"]
[12,"МБОУ \"Лицей №2 им.ак.К.А.Валиева г.Мамадыш\"","   Русский язык и литература","Роль письма в художественных произведениях","литература","Тюкменова Кристина ","6А","Гурьянова Резеда Фазыловна, учитель русского языка и литературы"]
[13,"\"Средняя общеобразовательная школа №27 с углубленным изучением отедльных предметов\" Нижнекамского ","Русский язык и литература","Стихи рождаются сами собой","литература ","Дубровский Михаил Александрович","9Г","Васильева Любовь Николаевна, учитель русского языка и литературы первой квалификационной категории"]
[14,"МБОУ \"Красногорская СОШ\"","Научно-исследовательская работа","Перекличка гениев (В.В. Маяковский и М.Ю. Лермонтов)","Русский язык","Закирьянова Алия",8,"Хазиева Залия Манафовна"]
[15,"МБОУ \"СОШ №37 с углубленнымизучением отдельных предметов\"","русский язык и литература","Образы природы в творчестве М.Гоголева(по рассказу \"Сад\")","литература","Руссу Валерия Максимовна",9,"Сергеева Светлана Николаевна"]
[16,"МБОУ \"СОШ №37 с углубленнымизучением отдельных предметов\"","русский язык и литература","Семантика прилагательного \"красный\" в стихотворениях о войне татарских и русских писателей","русский язык","Микрюкова Валерия Васильевна",9,"Сергеева Светлана Николаевна"]
[17,"Усалинская СОШ",null,"История Мамадышского уезда в творчестве Салтыкова - Щедрина",null,"Шарифуллин Искандер",null,"Фазылова Р Ф"]
{"$rows_empty":65}
[{"$f":"COUNT(A2:A83)","v":17}]

{"sheet":"Математика","index":7,"n_rows":84,"n_cols":10,"rows_kept":84}
["№","Наименование\nОУ\n","Направление конкурсной работы","Название работы","Предмет ","ФИО автора работы","Класс ","Руководитель ","работа","оплата"]
[1,"МБОУ \"Лицей №177\", г.Казань","Физика, математика, химия, информатика","Использование криптографии в создании игры квест","математика","Самоделок Мария Алексеевна",7,"Сотникова И.А, учитель"]
[2,"МБОУ \"Гимназия №2\" ЕМР","Исследовательская работа","Применение математической статистики для оценки экологической обстановки города Елабуга","математика","Гребнева Ксения  Юрьевна",10,"Димиева Зимфира Тимерхановна"]
[3,"МБОУ \"Балтасинская гимназия\"","Математика","Статистика в школе - математический порядок","Математика ","Акберов Тимерхан Азатович",7,"Нуриева Альбина Ровертовна, учитель математики первой квалификационной категории"]
[4,"Муниципальное автономное общеобразовательное учреждение «Средняя общеобразовательная школа №3» г.Нурлат","математика","Вычисление площади лекал методом аппроксимации для определения процента межлекальных выпадов","математика","Махмутова Диляра Маратовна ",10,"Давыдкина Ольга Николаевна, учитель математики"]
[5,"МБОУ Гимназия №27 с татарским языком обучения г. Казань","математика","Как экономить электроэнергию с помощью математики","математика","Хамедвалиева Аделя Рафисовна","6 а","Гильмиева Гульназ Гаптельзаветовна, учитель математики высшей категории"]
[6,"Тойгильдинская основная общеобразовательная школа Муслюмовского","Математика","Математика и здоровье","Математика","Мингазова Диляра Рамилевна",5,"Хазиева Нурдида Котдусовна учитель математики"]
[7]
[8,"МБОУ \"СОШ №8\"","математика","Применение методов фрактальной геометрии в психологии.","математика","Горшенина Ангелина Сергеевна ",10,"Шурыгина Ирина Владимировна"]
[9,"МБОУ \"Средняя общеобразовательная школа № 8\" Елабужского муниципального района РТ","Математика ","Математика и литература","Математика","Мазняк Руслан Сергеевич","6 \"А\"","Малкова Елена Сергеевна"]
[10,"МБОУ \"Нижнеошминская СОШ\" Мамадышского района РТ","Исследовательская работа","Математика в педиатрии","математика","Габдулбарова Диляра Талгатовна",6,"Миннахметов Ринат Равилевич"]
[11,"МБОУ «Школа № 167  с углубленным \nизучением отдельных предметов»","математика","Предания старины глубокой.\nГрафики функций в орнаментах ","математика","Арутюнян Анита Ашотовна,\nЗалялиев Ильдар Аминазович",10,"Николаев Э. Н,\nФаюршина И.Г.\nучителя математики \nи информатики"]
[12,"МБОУ «Школа № 167  с углубленным \nизучением отдельных предметов»","математика","Пусть кривые Лобачевского\n украсят города","математика","Нуртдинова  Аида Робертовна,\nБастанова Камиля Иршатовна, ",10,"Николаев \nЭ. Н,\nФаюршина И.Г.\nучителя математики \nи информатики"]
[13,"МБОУ \"Средняя общеобразовательная школа № 8\" Елабужского муниципального района РТ",null,"МАТЕМАТИКА И ХОККЕЙ ",null,"Полянцев Денис Владимирович",8,"Герасимова Любовь Николаевна"]
[14," «Средняя общеобразовательная  школа №1 города Азнакаево Республики Татарстан»         ","естественно-математическое","Влияние атмосферного давления на посещаемость и  успеваемость учащихся моего класса ","физика","Марданшина Миляуша Марселевна",10,"Хафизова Зиля Марсиловна, учитель физики первой квалификационной категории"]
[15,"Красногорская СОШ",null,"Линейная функция  в нашей жизни",null,"Фатыхов Алмаз ",null,"В.Р. Мустафина"]
{"$rows_empty":67}
[{"$f":"COUNT(A2:A83)","v":15}]

{"sheet":"Татарский ","index":8,"n_rows":87,"n_cols":10,"rows_kept":87}
["№","Наименование\nОУ\n","Направление конкурсной работы","Название работы","Предмет ","ФИО автора работы","Класс ","Руководитель ","работа","оплата"]
[1]
[2,"МБОУ \"Верхнеякинская  основная  общеобразовательная школа\" Мамадышского муниципального района РТ\"","Родной язык и литература","Ф.Яруллин,А.Алиш әкиятләрендә әхлак тәрбисенең чагылышы","Родная литература","Хасанов Инсаф Разилевич",null,"Фахрутдинова Лилия Мавлеевна,  учитель татарского языка и литературы"]
[3,"МБОУ СОШ №2 РТ г.Агрыз","татарский язык и литература","Костюмы татарского народа","родной язык","Ахметгаянова Аделина Азатовна","7А","Ибрагимова Венера Аграфовна, учитель татарского языка и литературы"]
[4,"МБОУ «Нурминская средняя общеобразова-тельная школа»",null,"Техника художественного перевода  на примере рассказа Амирхана Еники «Бала» («Дитя»)","Татарский язык,","Ризванова Залия Назиховна Лапшина Алия Зимфировна ",11,"Ибрагимова Рида Харисовна Асанова Римма Харисовна"]
[5,"МБОУ \"Мари Булярская ООШ\" Муслюмовского муниципального района РТ","«Татарский язык и литература»","\"Эльмира Шәрифҗанова иҗатында әхлак тәрбиясе\"","татарский язык и  литература","Шайдуллина Айсылу",5,"Гильфанова Лилия Мирзарифовна"]
[6,"МБОУ \"Нижнесуньская СОШ\"","Татарский язык и литература","Татар реклама-\nсында\nстилистик чаралар","Татарский язык и литература","Акбаров Алмаз Нурлыханович",7,"Назмиева Эндже Миннехановна"]
[7,"МБОУ \" Лицей №2 им. ак К.Валиева г.Мамадыш\"","Татарский язык и литература","Г. Тукайның “Теләнче” шигыренең язылу тарихы һәм Венера Думаева-Вәлиева тәрҗемәләре.","Татарский язык и литература","Лукманова Лиана Карпова Юлия Петровна",8,"Фазлиева Л Сафина ГГ"]
[8,"МБОУ \"Шемяковская ООШ\"","Татарский язык и литература","Халкыбызның мәдәни мирасын халыкка кайтаручы","Татарский язык и литература","Ситдикова Дина Фанисовна",8,"Абдуллина Минзия Шамсумухаметовна учитель татарского языка и литературы"]
[9,"МАОУ «Лицей №121», МБУДО «Центр одаренных детей» г.Казани","Татарская литература","Әдәбиятта Җир- ана һәм туган ил  образларының тәңгәллеге         ","Татарская литература","Хайрутдинова Айгуль Рамилевна",11,"Валиуллина Р.Х. Шигапова Л.Г."]
[10,"МАОУ «Лицей №121», МБУДО «Центр одаренных детей» г.Казани","Татарская литература","Татар  драматургиясендә мифологик мотивлар чагылышы","Татарская литература","Тимерханова Иделя Айнуровна",10,"Валиуллина Р.Х. Шигапова Л.Г."]
[11,"Шадчинская СОШ",null,"Т. Миннулин водевильлэрендегэ суретлеу чаралары",null,"Николаева Юля",null,"Садыкова Л П"]
{"$rows_empty":74}
[{"$f":"COUNT(A2:A86)","v":11}]

{"sheet":"Юный Окружающий мир","index":9,"n_rows":31,"n_cols":8,"rows_kept":31}
["№","Наименование\nОУ\n","Направление конкурсной работы","Название работы","Предмет ","ФИО автора работы","Класс ","Руководитель "]
[1,"РТ Кукморский  муниципальный районы\nМаскаринская средняя школа имени Н.А. Самигуллина\n","“ Юный исследователь: Окружающий мир\"","Бездәге табигать шартларында ян бакчада арахис үстерү.","Окружающий мир","Юзмиева Залина Галинуровна",4,"Аглиуллина Гульнур Архаметдиновна, учитель начальных классов."]
[2,"Муниципальное автономное общеобразовательное учреждение \"Лицей № 2\" Альметьевск","“ Юный исследователь: Окружающий мир\"","Подсолнечное масло своими руками","Окружающий мир, здоровье, экология","Нуриев Рушан Айратович",4,"Арсланова Лилия Тимерхановна"]
[3,"МАОУ \"СОШ № 7\" г.Альметьевск","“ Юный исследователь: Окружающий мир\"","Жажда жизни или как росток пробивает асфальт?","Экология","Хрусталев Антон Юрьевич","2 Б","Сабаева Мария Александровна, учитель начальных классов"]
[4,"ГБООУ \"Болгарская санаторная школа - интернат\"","“ Юный исследователь: Окружающий мир\"","\"Будь природе другом!Красная книга Спасского района\"","Окружающий мир","Куценко Алена",3,"Бухалова Гильсиря Минтаировна, Кобенячкина Ольга Александровна, Низамова Алсу Салимовна"]
[5,"МАОУ \"Гимназия № 76 г. Набережные Челны","“ Юный исследователь: Окружающий мир\"","Накипь после кипячения","«Окружающий мир, здоровье, экология»","Хайдарова Альмира Илнуровна",4,"Рыбушкина Лидия Борисовна  учитель начальных классов"]
[6,"МАОУ \"Гимназия № 76 г. Набережные Челны","“ Юный исследователь: Окружающий мир\"","Как живется сосне в городе?","«Окружающий мир, здоровье, экология»","Хайдарова Аиша Илнуровна",1,"Ахмедова Татьяна Леонидовна -  учитель начальных классов"]
[7,"Муниципальноое общеобразовательное учреждение \"Заинская средняя общеобразовательная школа №6\"","“ Юный исследователь: Окружающий мир\"","Куриные яйца- во вред или во благо  человеку?","окружающий мир","Мельников Кирилл",2,"Хохлова Лариса Владимировна"]
[8,"Муниципальноое общеобразовательное учреждение \"Заинская средняя общеобразовательная школа №6\"","“ Юный исследователь: Окружающий мир\"","Мы создали аквадом, поселили рыбок в нем","окружающий мир","Рахимзянова Азалия Руслановна",3,"Тихонова Людмила Юрьевна, учитель начальных классов высшей квалификационной категории"]
[9,"МБОУ \"Гимназия №2\" имени Баки Урманче","“ Юный исследователь: Окружающий мир\"","\"Не просто фликер...\"","окружающий мир","Адиев Булат Айнурович",4,"Гареева Ляйсан Рафисовна, учитель начальных классов"]
[10,"МБОУ \"СОШ № 4\"","“ Юный исследователь: Окружающий мир\"","\"Почему стреляет попкорн\"","окружающий мир","Войлиненко Анастасия Сергеевна","1 б ","Николаева Елена Николаевна, учитель начальных классов"]
[11,"МБОУ \"Средняя общеобразовательная школа №4 г.Мамадыш\" Мамадышского муниципального района РТ","“ Юный исследователь: Окружающий мир\"","« В стране витаминии»","Начальные классы","Сагитов Рузаль",1,"Раимова Гульнара Наилевна - учитель начальных классов, высш. кв. кат"]
[12,"МБОУ \"Гимназия №2\" имени Баки Урманче Нижнекамского муниципального района","“ Юный исследователь: Окружающий мир\"","\"Сравнительный анализ двух родниковых вод Нижнекамского района\"","окружающий мир","Шигапов Халил Айдарович",3,"Насибуллина Раушания Адгамовна, учитель начальных классов"]
[13,"МАОУ \"Гимназия № 76\" \nг. Набережные Челны","“ Юный исследователь: Окружающий мир\"","Муравьиная дорожка","Окружающий мир","Шакуров Эмир",2,"Вильданова А.И."]
[14,"МАОУ \"Лицей №2\" г. Альметьевска РТ","“ Юный исследователь: Окружающий мир\"","Разлив нефти - экологическая катастрофа","Экология","Анисахарова Виктория Максимовна",4,"Чиж Ольга Александровна учитель начальных классов высшей категории"]
[15,"МБОУ \"Гимназия №2\" имени Баки Урманче Нижнекамского муниципального района","“ Юный исследователь: Окружающий мир\"","\"Влияние различных жидкостей на костную ткань\"","окружающий мир","Шакирова Самира Рустамовна",3,"Насибуллина Раушания Адгамовна, учитель начальных классов"]
[16,"МАОУ гимназия № 76, г. Набережные Челны","“ Юный исследователь: Окружающий мир\"","Сравнение козьего и коровьего молока","Окружающий мир","Азизова Самира Ильгамовна","1 Б","Костина Валентина Михайловна"]
[17,"МБОУ «СОШ № 27» \nг. Нижнекамск РТ\n","“ Юный исследователь: Окружающий мир\"","Комнатное растение –\nорхидея\n","Окружающий мир","Хасанова Рузиля Валерьевна",4,"Хасанова Гульназ Загитовна, \nучитель начальных классов\nвысшей категории\n"]
[18,"МБОУ «СОШ № 27» \nг. Нижнекамск РТ\n","“ Юный исследователь: Окружающий мир\"","Пластиковая бутылка\n «плюсы» и «минусы»        \n","экология","Васильчак Олеся Евгеньевна",4,"Хасанова Гульназ Загитовна, \nучитель начальных классов\nвысшей категории\n"]
[19,"                                                                                      МБОУ «СОШ №37 с углубленным изучением\nотдельных предметов»\nг. Набережные Челны\n","“ Юный исследователь: Окружающий мир\"","Аллелопатия и её влияние на растения","Окружающий мир","Семенова Елизавета Николаевна","3Б","Устинова Татьяна Степановна  учитель начальных классов"]
[20,"Частное общеобразовательное учреждение Международная Школа \"Развитие\"","“ Юный исследователь: Окружающий мир\"","Почему учителя ставят двойки?","Окружающий мир","Гречаниченко Елизавета Алексеевна",3,"Черницына Маргарита Михайловна, диреткор образовательного рпоцесса, магистр психолого-педагогических наук"]
[21,"МБОУ \"Шушмабашская средняя общеобразовательная школа\"","“ Юный исследователь: Окружающий мир\"","Рюкзак астым җилкәмә","Окружающий мир, здоровье","Самигуллина Иркя Фуатовна",2,"Тазетдинова Гульшат Ринатовна, учитель начальных классов"]
[22,"МАОУ \"Гимназия 76\"","“ Юный исследователь: Окружающий мир\"","Волшебная сила творога. Есть ли она?","Окружающий мир","Микушина Амалия Евгеньевна","1Б","Костина Валентина Михайловна"]
[23,"МАОУ \"Гимназия №76\"","“ Юный исследователь: Окружающий мир\"","Органическое земледелие: высокое плодородие почвы - волшебство или результат стараний бактерий ","Окружающий мир, здоровье, экология","Сафина Ралина Руслановна","4А","Рыбушкина Лидия Борисовна, научный руководитель, учитель 1 квалификационной категории"]
[24,"МАОУ \"Гимназия № 76\", г. Набережные Челны","“ Юный исследователь: Окружающий мир\"","Бытовые отходы. Можем ли мы сделать мир чище?",null,"Крапивина Ирина Ивановна","1Г","Климина Маргарита Юрьевна"]
[25,"МБОУ «Лицей №2 имени академика К.А. Валиева г. Мамадыш», ","“ Юный исследователь: Окружающий мир\"","Зимний огород.","окружающий мир","Полякова Валерия, Тазиева Зарина","2 - 3 класс","Вагизова Зинфира Гафиятулловна, Лучкина Наталья Александровна "]
[26,"МАОУ гимназия № 76 г.Набережные Челны","“ Юный исследователь: Окружающий мир\"","Нитраты в овощах и фруктах ",null,"Зубарева Софья Данииловна","1Б","Костина Валентина Михайловна, учитель начального класса"]
[27,"МБОУ \"Нижнеошминская СОШ\" Мамадышского муниципального района","“ Юный исследователь: Окружающий мир\"","Почему у кошек в темноте светятся глаза?","Окружающий мир","Нургалиева Зарина Рамилевна",1,"Яруллина Чулпан Ринатовна, учитель начальных классов"]
[28,"МБОУ \"СОШ№1 г.Мамадыш\"","“ Юный исследователь: Окружающий мир\"","Детская косметика: вред для кжи или удовольствие для ребенка","Окружающий мир","Габдрахманова Гузель Рамилевна",3,"Фахриева Елена Леонидовна"]
[29,"МБОУ\"Гимназия №2 имени Мулланура Вахитова\"","“ Юный исследователь: Окружающий мир\"","\"Кош оясымы, әллә сәнгать әсәреме?\"","Окружающий мир","Аминова Ильзира Ниязовна",3,"Сагитова Аниса Амировна (учитель)"]
[30,"МБОУ «Гимназия№2», г. Набережные Челны","“ Юный исследователь: Окружающий мир\"","Почему считают что «лук от семи недуг?»",null,"Давлетбаев Салават                                                                                                                           ",null,"Сагитова Аниса Амировна, "]

{"sheet":"Юный История","index":10,"n_rows":82,"n_cols":10,"rows_kept":82}
["№","Наименование\nОУ\n","Направление конкурсной работы","Название работы","Предмет ","ФИО автора работы","Класс ","Руководитель ","работа","оплата"]
[1," «Кукморская средняя школа №3» Кукморского муниципального района Республики Татарстан","«Юный исследователь»","«История нашей малой Родины»",null,"Аполинариев К.Д. Габдуллина Д.Ф.","3 класс","Латипова Лилия Фаизовна, Габбасова Расима Расимовна"]
[2," Набережные Челны \"Гимназия № 76\"","Юный исследователь Секция № 2 \"История, краеведение\"","Проект-презентация \"Чтобы помнили…\"","История","Коваленко Иван Константинович","3 В","Белалова Марина Викторовна, учитель начальных классов"]
[3,"МБОУ \"Гимназия №3\" Чистопольского муниципального района РТ","Юный исследователь Секция №2 \"История, краеведение\"","Роман Лизалин Человек с большой буквы.","история","Тесакова Софья Олеговна",4,"Горелова Наталья Петровна, учитель начальных классов высшей квалификационной категории"]
[4,"МБОУ «СОШ № 27» \nг. Нижнекамск РТ\n","История, краеведение","Дело жизни моей бабушки Руфины Сунгатуллиной","Краеведение","Смирнова Айне Дмитриевна",4,"Хасанова Гульназ Загитовна, \nучитель начальных классов\nвысшей категории\n"]
[5," \"Средняя общеобразовательная школа № 7\" г. Альметьевска, РТ","История, краеведение","Мой прадедушка - герой!","начальные классы","Шаронова Анастасия Александровна",4,"Тимофеева Наталья Алеесеевна, учитель начальных классов"]
[6,"МБОУ \"Таканышская СОШ\"","Юный исследователь. Секция №2 \"История, краеведение\"","“Авылымның  бер шәхесе – “Артиллерист  - Нәзирҗан”\n(Җирле-төбәк, музей материалларына нигезләнеп)\n","Внеурочная деятельность","Гараев Ранис Данисович","1 класс"," Ибрагимова Софья Николаевна"]
[7,"МАОУ гимназия №76 г. Набережные Челны","юный исследователь","Герои Победы, наши деды и прадеды\n",null,"Мухаметшина Камилла Ильдаровна ","ученица 4 А класса"]
[8,"МБОУ  «Зюринская СОШ»","История и краеведение","Вахит базары тарихы","история","Кузнецова Кристина Владимировна",4,"Шарифуллина Салима Махмутовна, учитель первой категории"]
[9,"МБОУ \"Нижнеошминская СОШ\" Мамадышского района РТ","Юный исследователь«История, краеведение»","«Гаиләмдә чәк-чәк пешерү – буыннардан килгән мирас»","начальные классы","Миннахметова Резеда Ильсуровна",2,"Миннахметова Аниса Хакимовна"]
[10,"МБОУ \"Усалинская СОШ\" Мамадышского района РТ","\"Юный исследователь\"","\"Авылым атамаларында- туган ягым тарихы.","История, краеведение.","Мустафина Диля Ильгизовна.","2 А класс","Файзрахманова Эльмира Дияттиновна,"]
[11,"МБОУ \"Гимназия №2 им.Мулланура Вахитова\" г.Набережные Челны","История, краеведение","В честь кого назвали улицу, на которой я живу","История","Равзутдинова Зарина Тагировна","4 В","Гинниятуллина Ильфира Сабировна, учитель начальных классов"]
[12,"Верхнеошминская ООШ","\"Юный исследователь\"","Буыннар чылбыры озелмесен",null,"Исмагилов Карим",4,"Исмагилова Р К"]
[13,"МБОУ «Лицей №2 им.ак. К.А. Валиева  г. Мамадыш»","История и краеведение","Газете «Нократ» 100 лет","Начальные классы","Каюмова Камилла","1 В"]
{"$rows_empty":67}
[{"$f":"COUNT(A2:A81)","v":13}]

{"sheet":"Юный Физика, математика","index":11,"n_rows":100,"n_cols":10,"rows_kept":100}
["№","Наименование\nОУ\n","Направление конкурсной работы","Название работы","Предмет ","ФИО автора работы","Класс ","Руководитель ","работа","оплата"]
[1,"МБОУ \"Никифоровская ООШ\"","Юный исследователь","Кубик Рубика не просто развлечение",null,"Степанов Дмитрий Сергеевич"]
[2,"ГАОУ \"Школа Иннополис\" Верхнеуслонский район РТ","Юный исследователь","Загадки математики","математика","Лабутова Вероника Николаевна",4,"Нуреева Регина Рашитовна, учитель начальных классов"]
[3,"МАОУ \"Гимназия № 76\" г. Набережные Челны","Юный исследователь","Ветроэнергетика - возобновляемые источники энергетики","Физика","Халимуллин Камиль Фаизович","3-а","Рабаданова Гульнара Магомедовна"]
[4,"МАОУ \"Гимназия № 76\" г. Набережные Челны","Юный исследователь","Солнцемобиль. Миф или реальность?","Физика","Гареев Амир Айратович","3-а","Рабаданова Гульнара Магомедовна"]
[5,"Муниципальноое общеобразовательное учреждение \"Заинская средняя общеобразовательная школа №6\"","Юный исследователь","Почему \"плачут\" окна?","Физика","Абдурахманов Рамиль",3,"Храмкова Ольга Александровна"]
[6,"МБОУ «Гимназия №2» имени Баки Урманче","Юный исследователь","«Кодирование информации о товаре с помощью штрихового кодирования»","информатика","Газетдинов Гадель Робертович",4,"Мухаметьянова Чулпан Маликовна, учитель начальных классов, Газетдинова Алсу Расимовна, учитель информатики"]
[7,"МБОУ «СОШ № 27» \nг. Нижнекамск РТ\n","Физика, математика,\nхимия,\nинформатика.\n","   Симметрия в \nокружающем мире\n","математика","Горшунова Арина Алексеевна",4,"Хасанова Гульназ Загитовна, \nучитель начальных классов\nвысшей категории\n"]
[8,"Частное общеобразовательное учреждение Международная Школа \"Развитие\"","Юный исследователь (Физика, математика, химия, информатика)","Математика в искусстве","Математика","Кушнарев Григорий Викторович",4,"Соловьев Сергей Александрович, учитель физики и математики"]
[9,"МАОУ «Гимназия № 76» г.Набережные Челны","юный исследователь","Паровой двигатель на запасном пути. Так ли это?",null,"Юнусов Булат Ильдарович","2А","Вильданова Альфия Ильгизовна"]
[10,"МАОУ \"Гимназия № 76\", г. Набережные Челны","Юный исследователь. Секция №3  «Физика, математика, химия, информатика»","Как появляется тень?",null,"Коновалов Ярослав Алексеевич","1Г","Климина Маргарита Юрьевна"]
[11,"МАОУ \"Гимназия № 76\", г. Набережные Челны","Юный исследователь. Секция №3  «Физика, математика, химия, информатика»","Можно ли искусственно создать кристаллы?",null,"Земсков Севастьян Давыдович","1Г","Климина Маргарита Юрьевна"]
[12,"МБОУ \"Лицей №2 им. ак.К.Валиева г. Мамадыш","Юный исследователь. Секция №3  «Физика, математика, химия, информатика»"," О секрете происхождения арабских цифр ",null,"Расулова Амина","2Г","Нугуманова Альбина Ильдусовна"]
[13,"МАОУ гимназия №76 г. Набережные Челны",null,"Компьютер - мой друг или враг?\n",null,"Мухаметшина Самира Ильдаровна ","ученица 3 Б класса"]
[14,"МБОУ \"Гимназия №2\" имени Баки Урманче Нижнекамского муниципального района РТ","Юный исследователь","Химический источник электрического тока","Химия               или           окружающий мир","Харитонов Никита Александрович","4 В","Мухаметьянова Чулпан Маликовна, учитель начальных классов"]
[15,"МАОУ \"Гимназия № 76\"","Юный исследователь","Почему скользят ботинки",null,"Мелехин Ратмир Евгеньевич","1 Г","Климина Маргарита Юрьевна, учитель начальных классов"]
{"$rows_empty":83}
[{"$f":"COUNT(A2:A99)","v":15}]

{"sheet":"Юный русский язык  ","index":12,"n_rows":97,"n_cols":10,"rows_kept":97}
["№","Наименование\nОУ\n","Направление конкурсной работы","Название работы","Предмет ","ФИО автора работы","Класс ","Руководитель ","работа","оплата"]
[1,"МБОУ \"Среднекирменская СОШ\" Мамадышского муниципального района РТ","Юный исследователь","\"Ай да русский самовар, или энциклопедия одного слова\"","русский язык","Искандарова Фируза Фирдиазовна",4,"Искандарова Гульназ Вакиповна"]
[2,"МБОУ «Гимназия №26» г.Набережные Челны","Русский язык и литература","Использование фразеологизмов в речи младших школьников","Русский язык","Селиванов Владислав",3,"Батенкова Наталья Геннадьевна"]
[3,"МБОУ \"Лицей №2 им. ак.К.Валиева г. Мамадыш","Юный исследователь Русский язык","Буквы, исчезнувшие из алфавита","русский язык","Расулова Мадина","2Г","Нугуманова Альбина Ильдусовна"]
[4,"МБОУ \"Красногорская СОШ\"","Научно-исследовательская работа","Молодежный жаргон в речи современных школьников","Русский язык","Балашова Анжелика Петровна",4,"Балякина Анна Алексеевна"]
[5,"МБОУ «Лицей №2 им.ак. К.А. Валиева г. Мамадыш».","Секция №4 «Искусство, технология, русский язык и литература»","Изготовление пластилина в домашних условиях","технология","Гайнанов Амир Айнурович",4,"Галимуллина Асия Мансуровна "]
[6,"МБОУ \"СОШ № 27\" г. Нижнекамск","Искусство, технология, русский язык и литература","Оригами- проект будущего","технология","Зиннатуллин Амиль Эдуардович","1А","Хисматуллина Альфия Габдулхаковна"]
[7,"МБОУ \"Гимназия №2\" имени Баки Урманче","Юный исследователь \"Искусство,технология,русский язык и литература\"","\"Скотч- на все случаи жизни\"","технология","Шалфеева Виктория Вадимовна,  Низамутдинов Амин эдуардович",4,"Гареева Ляйсан Рафисовна, учитель начальных классов"]
[8,"МАОУ  \"СОШ №7\"","Юный исследователь","\"Забытая мелодия флейты\"","Юный исследователь Секция №4 \"Искусство, технология, русский язык и литература\"","Москалев Георгий Олегович","2 \"В\"","Тазетдинова Зульфия Эльврусовна"]
[9,"МАОУ \"Гимназия №76\" г. Набережные Челны","Юный исследователь","Узелковый батик. Шибори. Тай дай","Искусство","Суфиярова Алина Салаватовна",4,"Бегунова Любовь Евгеньевна,  Рыбушкина Лидия Борисовна"]
[10,"МБОУ \"СОШ №19\" НМР РТ","Юный исследователь Секция №4 «Искусство, технология, русский язык  и литература»","Чудесная гуашь","Художественное искусство","Давытева Ралина Булатовна","2 в","Ташмурзина Алена Владимировна, учитель начальных классов"]
[11,"МБОУ \"СОШ № 27 \" НМР РТ","«Искусство, технология, русский язык  и литература»"," «Возрождение  семейных традиций»","Юный исследователь (для учащихся начальных классов)","Деревянко Камила Александровна","4 Б","Хабибуллина Лилия Фанилевна, учитель начальных классов высшей квалификационной категории"]
[12,"Муниципальноое общеобразовательное учреждение \"Заинская средняя общеобразовательная школа №6\"","Юный исследователь","Экологический смысл в русских народных сказках","окружающий мир, здоровье, экология","Догадин Андрей Владимирович",4,"Догадина Ирина Анатолиевна, учитель начальных классов высшей квалификационной категории"]
[13,"МБОУ КСШ №3","Юный исследователь","Роль белого цвета в культуре татарского народа","ИЗО, татарская литература","Хазиев Карим Рашадович  Сабиров Карим Булатович","2г","Гордеева Лариса Александровна Сабирова Залия Рафаилевна"]
{"$rows_empty":82}
[{"$f":"COUNT(A2:A96)","v":13}]

{"sheet":"Юный Татарский ","index":13,"n_rows":28,"n_cols":5,"rows_kept":28,"merged":[[1,0,2,0],[1,1,2,1],[1,3,2,3],[3,0,4,0],[3,1,4,1],[3,3,4,3],[3,4,4,4],[6,0,7,0],[6,1,7,1],[6,2,7,2],[6,3,7,3],[6,4,7,4],[10,0,11,0],[10,2,11,2],[10,3,11,3],[10,4,11,4],[12,0,14,0],[12,1,14,1],[12,3,14,3],[12,4,14,4],[15,0,17,0],[15,1,17,1],[15,2,17,2],[15,3,17,3],[18,0,20,0],[18,1,20,1],[18,2,20,2],[18,3,20,3],[21,0,23,0],[21,1,23,1],[21,2,23,2],[21,3,23,3],[24,0,27,0],[24,1,27,1],[24,3,27,3],[24,4,27,4]]}
["№","ФИО участника","Название работы","Класс","Школа"]
[1,"Галимуллина Динара ",null,4,"МБОУ «Многопрофильный лицей "]
[null,null,"Бал корты минем дустым",null,"им.    А.М.Булатова п.г.т. Кукмор»"]
[2,"Гараев Ранис","Авылымның  бер шәхесе – “Артиллерист  - Нәзирҗан”",1,"МБОУ «Таканышская СОШ» Мамадышского муниципального района"]
[null,null,"(Җирле-төбәк, музей материалларына нигезләнеп)"]
[3,"Кузнецова Кристина Владимировна","«Вахит базары» тарихы",4,"МБОУ «Зюринская СОШ» Мамадышского муниципального района"]
[4,"Миннахметова Резеда","Гаилэмдэ чэкчэк пешеру буыннардан килгэн мирас",2,"МБОУ “Нижнеошминская СОШ” Мамадышского муниципального района"]
[]
[5,"Мустафина Диля Ильгизовна","Авылым  атамаларында – туган ягым   тарихы",2,"МБОУ “Усалинская СОШ” Мамадышского муниципального района"]
[6]
[7,"Хазиев Карим ","Роль белого цвета в культуре татарского народа","2, 3","МБОУ КСШ № 3 пос. Кукмор"]
[null,"Сабиров Карим "]
[8,"Шайдуллина Айсылу","Эльмира",5,"МБОУ \"Мари Булярская ООШ\" Муслюмовского муниципального района РТ"]
[null,null,"Шэрифуллина ижат аша эхлак  "]
[]
[9,"Шарифуллин Амир","Яхшы исем байлыктан  артык",4,"МБОУ «Гимназия №2» "]
[{"$nulls":4},"имени Баки Урманче г. Нижнекамск"]
[]
[10,"Шарифуллина Рания ","Гасырдан гасырга буыннан буынга ",3,"“Мамаширской средней школы”"]
[{"$nulls":4},"Кукморского районаРТ"]
[]
[11,"Шафигуллин Карим","Әминә Бикчәнтәева – балаларның якын дусты",3,"МБОУ «Многопрофильный лицей                 "]
[{"$nulls":4},"имени А.М.Булатова”"]
[]
[12,"Шаяхметова Нафиса","Туган авылымда  халык авыз иҗатының",3,"МБОУ “Дюсьметьевская СОШ” Мамадышского муниципального района"]
[null,null," кече жанрлары"]
[null,null,"(балалар фольклоры) : "]
[null,null,"элек һәм хәзер."]

{"sheet":"Учителя","index":14,"n_rows":188,"n_cols":4,"rows_kept":188}
{"$rows_empty":170}
[{"$f":"COUNT(A2:A160)","v":0},"учителя"]
[null,"всего ученики ",{"$f":"'История '!A51+'География, экономика'!A52+Физика!A94+'Химия, биология, экология'!A105+'Созидательный труд '!A96+'Загадки английского'!A93+'Русский язык '!A84+Математика!A84+'Татарский '!A87+'Юный Окружающий мир'!A97+'Юный История'!A82+'Юный Физика, математика'!A100+'Юный русский язык  '!A97+'Юный Татарский '!A100+#REF!","v":{"$error":"#REF!"}},{"$f":"SUM(C173:C188)","v":{"$error":"#REF!"}}]
[null,"юный не понятный",{"$f":"#REF!","v":{"$error":"#REF!"}}]
[null,"юный татарский",{"$f":"'Юный Татарский '!A100","v":0}]
[null,"Юный русский язык ",{"$f":"'Юный русский язык  '!A97","v":13}]
[null,"Юный Физика, математика'",{"$f":"'Юный Физика, математика'!A100","v":15}]
[null,"Юный История",{"$f":"'Юный История'!A82","v":13}]
[null,"Юный Окружающий мир",{"$f":"'Юный Окружающий мир'!A97","v":0}]
[null,"Татарский ",{"$f":"'Татарский '!A87","v":11}]
[null,"Математика",{"$f":"Математика!A84","v":15}]
[null,"Русский язык '",{"$f":"'Русский язык '!A84","v":17}]
[null,"Загадки английского",{"$f":"'Загадки английского'!A93","v":0}]
[null,"Созидательный труд",{"$f":"'Созидательный труд '!A96","v":7}]
[null,"Химия, биология, экология",{"$f":"'Химия, биология, экология'!A105","v":0}]
[null,"Физика",{"$f":"Физика!A94","v":7}]
[null,"География, экономика",{"$f":"'География, экономика'!A52","v":5}]
[null,"История",{"$f":"'История '!A51","v":16}]
[null,"Студенты",{"$f":"#REF!","v":{"$error":"#REF!"}}]